fUSD/lending_fUSD_20260322
["ID","MTS","AMOUNT","RATE_DAILY","PERIOD"]
[408716808,1774167043085,-2000.0,0.00023079,2]
[408716810,1774167043096,-202.985,0.00023116,30]
[408716811,1774167043109,-154.3693,0.000232,2]
[408716812,1774167043121,-150.0,0.00023599,7]
[408716813,1774167043132,-284.69808,0.00023601,7]
[408716814,1774167043144,-194.73,0.00023842,2]
[408716815,1774167043155,-171.81,0.00024248,14]
[408716817,1774167043166,-354.36130468,0.00024259,2]
[408716819,1774167043177,-1223.53,0.00024322,2]
[408716821,1774167043188,-12946.84046404,0.00024354,2]
[408716823,1774167043199,-6008.0,0.00024409,2]
[408716825,1774167043209,-415.0,0.00024409,2]
[408716827,1774167043220,-202.985,0.00024486,30]
[408716830,1774167043231,-497.15,0.00024513,2]
[408716832,1774167043242,-1000.0,0.00024658,2]
[408716834,1774167043252,-150.0,0.00024658,2]
[408716836,1774167043262,-150.0,0.00024762,2]
[408716838,1774167043273,-150.0,0.00024762,2]
[408716839,1774167043283,-150.0,0.00024762,2]
[408716840,1774167043294,-3514.0,0.00024762,2]
[408716841,1774167043304,-1044.0,0.00024762,2]
[408716842,1774167043315,-1100.0,0.000249,9]
[408716843,1774167043325,-423.14,0.000249,7]
[408716844,1774167043336,-686.54,0.000249,7]
[408716845,1774167043346,-521.0,0.00025,11]
[408716846,1774167043357,-1606.0,0.00025057,5]
[408716847,1774167043367,-2000.0,0.00025387,2]
[408716848,1774167043377,-1399.11,0.000255,2]
[408716849,1774167043388,-660.88,0.000255,7]
[408716850,1774167043398,-12946.84046404,0.0002579,2]
[408716851,1774167043409,-471.73,0.000258,7]
[408716852,1774167043420,-12900.33313458,0.00025874,2]
[408716853,1774167043430,-150.0,0.0002589,2]
[408716854,1774167043442,-500.0,0.00025945,2]
[408716855,1774167043454,-177.54,0.00026189,30]
[408716856,1774167043465,-2011.0,0.00026233,5]
[408716857,1774167043475,-873.95,0.0002643,2]
[408716858,1774167043486,-497.15,0.00026676,2]
[408716859,1774167043496,-150.0,0.00027185,2]
[408716860,1774167043507,-1000.0,0.00027397,20]
[408716861,1774167043518,-27318.06,0.00027397,10]
[408716862,1774167043528,-22765.05,0.00027397,10]
[408716863,1774167043539,-18970.88,0.00027397,10]
[408716864,1774167043550,-160.0,0.000274,10]
[408716865,1774167043561,-6008.0,0.00027409,2]
[408716866,1774167043572,-415.0,0.00027409,2]
[408716867,1774167043582,-12900.33313458,0.000275,2]
[408716868,1774167043593,-37118.03,0.000276,7]
[408716869,1774167043604,-160.0,0.000276,7]
[408716870,1774167043615,-2000.0,0.00027695,2]
[408716871,1774167043625,-150.0,0.00027762,2]
[408716872,1774167043635,-150.0,0.00027762,2]
[408716873,1774167043645,-3514.0,0.00027762,2]
[408716874,1774167043655,-1044.0,0.00027762,2]
[408716875,1774167043664,-908.46,0.00027972,2]
[408716876,1774167043673,-156.6014,0.00028,2]
[408716877,1774167043683,-979.16666667,0.00028,7]
[408716878,1774167043692,-500.0,0.00028367,5]
[408716879,1774167043702,-500.0,0.00028367,5]
[408716880,1774167043712,-500.0,0.00028367,5]
[408716881,1774167043721,-166.81,0.00028493,2]
[408716882,1774167043730,-150.0,0.00028544,2]
[408716883,1774167043740,-194.73,0.00028734,2]
[408716884,1774167043749,-211.534412,0.00028812,14]
[408716885,1774167043758,-169.064931,0.00028812,14]
[408716886,1774167043767,-174.080908,0.00028812,14]
[408716887,1774167043776,-497.15,0.00028839,2]
[408716888,1774167043785,-1000.0,0.00028915,5]
[408716889,1774167043795,-1000.0,0.00028915,5]
[408716890,1774167043804,-423.14,0.00029,7]
[408716891,1774167043813,-686.54,0.00029,7]
[408716892,1774167043823,-925.41,0.00029314,2]
[408716893,1774167043832,-1073.03260881,0.00029463,5]
[408716894,1774167044106,-1500.0,0.00029463,5]
[408716895,1774167044128,-660.88,0.000295,7]
[408716896,1774167044142,-471.73,0.000295,7]
[408716897,1774167044153,-194.73,0.00029868,2]
[408716898,1774167044163,-354.36130468,0.00029954,2]
[408716899,1774167044172,-150.0,0.00029971,2]
[408716900,1774167044183,-1600.0,0.00030239,2]
[408716901,1774167044192,-1600.0,0.00030239,2]
[408716902,1774167044202,-1600.0,0.00030239,2]
[408716903,1774167044211,-1600.0,0.00030239,2]
[408716904,1774167044220,-1600.0,0.00030239,2]
[408716905,1774167044230,-1600.0,0.00030239,2]
[408716906,1774167044244,-1600.0,0.00030239,2]
[408716907,1774167044263,-1600.0,0.00030239,2]
[408716908,1774167044277,-1600.0,0.00030239,2]
[408716909,1774167044287,-1600.0,0.00030239,2]
[408716910,1774167044296,-164.5915,0.00030281,30]
[408716911,1774167044307,-164.5915,0.00030288,30]
[408716912,1774167044316,-282.59825,0.00030304,2]
[408716913,1774167044325,-177.54,0.00030379,60]
[408716914,1774167044335,-1000.0,0.000304,2]
[408716915,1774167044345,-6008.0,0.00030409,2]
[408716916,1774167044354,-415.0,0.00030409,2]
[408716917,1774167044364,-1700.0,0.00030646,2]
[408716918,1774167044373,-1700.0,0.00030646,2]
[408716919,1774167044382,-1700.0,0.00030646,2]
[408716920,1774167044392,-1700.0,0.00030646,2]
[408716921,1774167044402,-1700.0,0.00030646,2]
[408716922,1774167044411,-1700.0,0.00030646,2]
[408716923,1774167044420,-1700.0,0.00030646,2]
[408716924,1774167044430,-1700.0,0.00030646,2]
[408716925,1774167044439,-1700.0,0.00030646,2]
[408716926,1774167044448,-1615.0,0.00030646,2]
[408716927,1774167044457,-2000.0,0.000307,2]
[408716928,1774167044466,-1399.11,0.000307,2]
[408716929,1774167044475,-150.0,0.00030762,2]
[408716930,1774167044484,-3514.0,0.00030762,2]
[408716931,1774167044494,-1044.0,0.00030762,2]
[408716932,1774167044503,-497.15,0.00031002,2]
[408716933,1774167044513,-150.0,0.0003147,2]
[408716934,1774167044523,-908.46,0.00031693,2]
[408716935,1774167044533,-1838.18287016,0.00032393,2]
[408716936,1774167044542,-500.0,0.00032603,2]
[408716937,1774167044551,-500.0,0.00032603,2]
[408716938,1774167044566,-500.0,0.00032603,2]
[408716939,1774167044587,-500.0,0.00032603,2]
[408716940,1774167044608,-332.01363663,0.00032603,2]
[408716941,1774167044621,-150.0,0.00032603,2]
[408716942,1774167044631,-150.0,0.00032603,2]
[408716943,1774167044641,-200.0,0.00032603,2]
[408716944,1774167044650,-158.8659,0.000327,2]
[408716945,1774167044660,-497.15,0.00033165,2]
[408716946,1774167044670,-2398.22,0.00033409,2]
[408716947,1774167044680,-415.0,0.00033409,2]
[408716948,1774167044694,-3514.0,0.00033762,2]
[408716949,1774167044703,-1044.0,0.00033762,2]
[408716950,1774167044712,-500.0,0.00034247,2]
[408716951,1774167044724,-2000.0,0.000344,2]
[408716952,1774167044736,-177.54,0.00034568,60]
[408716953,1774167044747,-450.0,0.0003522,2]
[408716954,1774167044763,-450.0,0.0003522,2]
[408716955,1774167044774,-450.0,0.0003522,2]
[408716956,1774167044786,-450.0,0.0003522,2]
[408716957,1774167044796,-450.0,0.0003522,2]
[408716958,1774167044805,-450.0,0.0003522,2]
[408716959,1774167044814,-450.0,0.0003522,2]
[408716960,1774167044824,-450.0,0.0003522,2]
[408716961,1774167044834,-450.0,0.0003522,2]
[408716962,1774167044843,-233.0,0.0003522,2]
[408716963,1774167044853,-423.14,0.000353,30]
[408716964,1774167044863,-660.88,0.000353,30]
[408716965,1774167044872,-497.15,0.00035328,2]
[408716966,1774167044882,-686.54,0.000354,30]
[408716967,1774167044893,-471.73,0.000354,30]
[408716968,1774167044903,-908.46,0.00035413,2]
[408716969,1774167044913,-354.36130468,0.00035648,2]
[408716970,1774167044922,-244.26433695,0.00035756,2]
[408716971,1774167044932,-1857.49656676,0.00035756,2]
[408716972,1774167044942,-37118.03,0.000358,7]
[408716973,1774167044952,-2000.0,0.000358,2]
[408716974,1774167044963,-800.0,0.000359,13]
[408716975,1774167044972,-979.16666667,0.00036,7]
[408716976,1774167044982,-521.0,0.00036,21]
[408716977,1774167044991,-185.2540796,0.00036039,63]
[408716978,1774167045000,-2000.0,0.0003621,2]
[408716979,1774167045010,-2000.0,0.0003621,2]
[408716980,1774167045019,-2000.0,0.0003621,2]
[408716981,1774167045029,-2000.0,0.0003621,2]
[408716982,1774167045038,-2000.0,0.0003621,2]
[408716983,1774167045047,-2000.0,0.0003621,2]
[408716984,1774167045057,-2000.0,0.0003621,2]
[408716985,1774167045067,-2000.0,0.0003621,2]
[408716986,1774167045077,-2000.0,0.0003621,2]
[408716987,1774167045086,-1509.0,0.0003621,2]
[408716988,1774167045096,-250.66,0.000363,7]
[408716989,1774167045106,-3514.0,0.00036762,2]
[408716990,1774167045122,-1838.18287016,0.00037274,2]
[408716991,1774167045134,-215.0,0.00037425,2]
[408716992,1774167045145,-497.15,0.00037491,2]
[408716993,1774167045156,-161.1631,0.000375,2]
[408716994,1774167045166,-500.0,0.00037671,2]
[408716995,1774167045175,-10000.0,0.00037736,2]
[408716996,1774167045185,-699.16,0.00038034,30]
[408716997,1774167045197,-785.51132897,0.00038073,120]
[408716998,1774167045208,-1813.05338686,0.00038073,120]
[408716999,1774167045218,-340.10209675,0.00038073,120]
[408717000,1774167045227,-2000.0,0.000381,2]
[408717001,1774167045237,-250.66,0.000381,7]
[408717002,1774167045247,-1900.0,0.00038547,2]
[408717003,1774167045256,-1900.0,0.00038547,2]
[408717004,1774167045266,-1900.0,0.00038547,2]
[408717005,1774167045276,-1900.0,0.00038547,2]
[408717006,1774167045285,-1900.0,0.00038547,2]
[408717007,1774167045294,-1900.0,0.00038547,2]
[408717008,1774167045303,-1900.0,0.00038547,2]
[408717009,1774167045313,-1900.0,0.00038547,2]
[408717010,1774167045322,-1900.0,0.00038547,2]
[408717011,1774167045332,-1900.0,0.00038547,2]
[408717012,1774167045343,-177.54,0.00038757,90]
[408717013,1774167045352,-1000.0,0.00038767,2]
[408717014,1774167045362,-908.46,0.00039134,2]
[408717015,1774167045372,-2000.0,0.000395,2]
[408717016,1774167045382,-497.15,0.00039654,2]
[408717018,1774167045392,-423.14,0.000397,30]
[408717020,1774167045402,-1990.0,0.00039726,120]
[408717022,1774167045412,-3514.0,0.00039762,2]
[408717024,1774167045421,-686.54,0.000398,30]
[408717025,1774167045431,-150.0,0.0004,2]
[408717026,1774167045441,-163.0,0.0004,120]
[408717027,1774167045449,-158.0,0.0004,120]
[408717028,1774167045459,-250.66,0.0004,30]
[408717029,1774167045468,-660.88,0.0004,30]
[408717030,1774167045477,-1990.0,0.0004,120]
[408717031,1774167045487,-2705.49194924,0.00041,30]
[408717032,1774167045496,-471.73,0.00041,30]
[408717033,1774167045508,-1764.37251036,0.00041068,120]
[408717034,1774167045517,-150.0,0.00041096,2]
[408717035,1774167045528,-247.0,0.00041096,2]
[408717036,1774167045538,-150.0,0.00041096,2]
[408717037,1774167045548,-226.0,0.00041096,2]
[408717038,1774167045557,-37118.03,0.000411,7]
[408717039,1774167045566,-3300.0,0.000411,7]
[408717040,1774167045575,-2148.64,0.000411,30]
[408717041,1774167045585,-354.36130468,0.00041343,3]
[408717042,1774167045594,-2000.0,0.000418,2]
[408717043,1774167045603,-43731.0,0.00042,2]
[408717044,1774167045613,-1838.18287016,0.00042155,28]
[408717045,1774167045622,-163.4935,0.000423,2]
[408717046,1774167045632,-156.0055,0.00042422,2]
[408717047,1774167045642,-307.59307592,0.00042428,2]
[408717048,1774167045652,-300.0,0.00042428,2]
[408717049,1774167045662,-300.0,0.00042428,2]
[408717050,1774167045672,-300.0,0.00042428,2]
[408717051,1774167045681,-417.11348177,0.00042428,2]
[408717052,1774167045692,-300.0,0.00042428,2]
[408717053,1774167045701,-300.0,0.00042428,2]
[408717054,1774167045710,-717.54642308,0.00042428,2]
[408717055,1774167045720,-300.0,0.00042428,2]
[408717056,1774167045730,-300.0,0.00042428,2]
[408717057,1774167045739,-1086.77526194,0.00042428,2]
[408717058,1774167045748,-300.0,0.00042428,2]
[408717059,1774167045758,-300.0,0.00042428,2]
[408717060,1774167045767,-300.0,0.00042428,2]
[408717061,1774167045776,-300.0,0.00042428,2]
[408717062,1774167045786,-300.0,0.00042428,2]
[408717063,1774167045795,-300.0,0.00042428,2]
[408717064,1774167045804,-300.0,0.00042428,2]
[408717065,1774167045814,-300.0,0.00042428,2]
[408717066,1774167045823,-300.0,0.00042428,2]
[408717067,1774167045834,-300.0,0.00042428,2]
[408717068,1774167045844,-300.0,0.00042428,2]
[408717069,1774167045853,-300.0,0.00042428,2]
[408717070,1774167045863,-300.0,0.00042428,2]
[408717071,1774167045872,-300.0,0.00042428,2]
[408717072,1774167045881,-301.000602,0.00042428,2]
[408717073,1774167045890,-300.0,0.00042428,2]
[408717074,1774167045899,-300.0,0.00042428,2]
[408717075,1774167045910,-300.0,0.00042428,2]
[408717076,1774167045919,-600.11635329,0.00042428,2]
[408717078,1774167045929,-300.0,0.00042428,2]
[408717079,1774167045938,-300.0,0.00042428,2]
[408717080,1774167045947,-300.0,0.00042428,2]
[408717081,1774167045956,-300.0,0.00042428,2]
[408717082,1774167045965,-555.90105714,0.00042428,2]
[408717083,1774167045974,-300.0,0.00042428,2]
[408717084,1774167045983,-300.26795467,0.00042428,2]
[408717085,1774167045992,-300.0,0.00042428,2]
[408717086,1774167046001,-300.0,0.00042428,2]
[408717087,1774167046010,-1138.86212569,0.00042428,2]
[408717088,1774167046020,-307.35924896,0.00042428,2]
[408717089,1774167046028,-300.0,0.00042428,2]
[408717090,1774167046038,-858.24055709,0.00042428,2]
[408717091,1774167046047,-300.0,0.00042428,2]
[408717092,1774167046055,-300.0,0.00042428,2]
[408717093,1774167046064,-300.0,0.00042428,2]
[408717094,1774167046073,-300.0,0.00042428,2]
[408717095,1774167046082,-308.63412797,0.00042428,2]
[408717096,1774167046091,-300.0,0.00042428,2]
[408717097,1774167046100,-300.0,0.00042428,2]
[408717098,1774167046114,-300.0,0.00042428,2]
[408717099,1774167046123,-460.5100828,0.00042428,2]
[408717100,1774167046132,-300.0,0.00042428,2]
[408717101,1774167046141,-300.0,0.00042428,2]
[408717102,1774167046151,-300.0,0.00042428,2]
[408717103,1774167046160,-448.59580951,0.00042428,2]
[408717105,1774167046169,-300.0,0.00042428,2]
[408717106,1774167046180,-300.0,0.00042428,2]
[408717107,1774167046189,-302.71758979,0.00042428,2]
[408717109,1774167046199,-300.0,0.00042428,2]
[408717111,1774167046209,-300.0,0.00042428,2]
[408717113,1774167046218,-300.0,0.00042428,2]
[408717115,1774167046227,-520.90741423,0.00042428,2]
[408717117,1774167046236,-300.0,0.00042428,2]
[408717119,1774167046245,-307.59307592,0.00042428,2]
[408717121,1774167046254,-300.0,0.00042428,2]
[408717123,1774167046263,-300.0,0.00042428,2]
[408717125,1774167046273,-417.11348177,0.00042428,2]
[408717127,1774167046282,-300.0,0.00042428,2]
[408717129,1774167046291,-300.0,0.00042428,2]
[408717131,1774167046300,-717.54642308,0.00042428,2]
[408717133,1774167046309,-300.0,0.00042428,2]
[408717135,1774167046318,-300.0,0.00042428,2]
[408717137,1774167046327,-1086.77526194,0.00042428,2]
[408717139,1774167046337,-300.0,0.00042428,2]
[408717141,1774167046346,-300.0,0.00042428,2]
[408717143,1774167046356,-300.0,0.00042428,2]
[408717145,1774167046365,-300.0,0.00042428,2]
[408717146,1774167046374,-300.0,0.00042428,2]
[408717149,1774167046383,-300.0,0.00042428,2]
[408717151,1774167046393,-300.0,0.00042428,2]
[408717152,1774167046403,-300.0,0.00042428,2]
[408717154,1774167046412,-300.0,0.00042428,2]
[408717156,1774167046421,-300.0,0.00042428,2]
[408717158,1774167046431,-300.0,0.00042428,2]
[408717160,1774167046440,-300.0,0.00042428,2]
[408717162,1774167046449,-300.0,0.00042428,2]
[408717164,1774167046459,-300.0,0.00042428,2]
[408717166,1774167046468,-301.000602,0.00042428,2]
[408717168,1774167046477,-300.0,0.00042428,2]
[408717170,1774167046487,-300.0,0.00042428,2]
[408717172,1774167046498,-300.0,0.00042428,2]
[408717174,1774167046508,-600.11635329,0.00042428,2]
[408717176,1774167046518,-300.0,0.00042428,2]
[408717178,1774167046528,-300.0,0.00042428,2]
[408717180,1774167046537,-300.0,0.00042428,2]
[408717182,1774167046547,-300.0,0.00042428,2]
[408717184,1774167046557,-555.90105714,0.00042428,2]
[408717186,1774167046567,-300.0,0.00042428,2]
[408717188,1774167046576,-300.0,0.00042428,2]
[408717190,1774167046585,-300.26795467,0.00042428,2]
[408717192,1774167046595,-300.0,0.00042428,2]
[408717194,1774167046605,-1138.86212569,0.00042428,2]
[408717196,1774167046614,-307.35924896,0.00042428,2]
[408717198,1774167046624,-300.0,0.00042428,2]
[408717200,1774167046633,-858.24055709,0.00042428,2]
[408717203,1774167046643,-300.0,0.00042428,2]
[408717205,1774167046653,-300.0,0.00042428,2]
[408717207,1774167046663,-300.0,0.00042428,2]
[408717209,1774167046672,-300.0,0.00042428,2]
[408717211,1774167046682,-308.63412797,0.00042428,2]
[408717213,1774167046691,-300.0,0.00042428,2]
[408717215,1774167046702,-300.0,0.00042428,2]
[408717217,1774167046711,-300.0,0.00042428,2]
[408717219,1774167046721,-460.5100828,0.00042428,2]
[408717220,1774167046730,-300.0,0.00042428,2]
[408717223,1774167046740,-300.0,0.00042428,2]
[408717224,1774167046750,-300.0,0.00042428,2]
[408717226,1774167046760,-448.59580951,0.00042428,2]
[408717228,1774167046770,-300.0,0.00042428,2]
[408717230,1774167046779,-300.0,0.00042428,2]
[408717232,1774167046788,-302.71758979,0.00042428,2]
[408717234,1774167046798,-300.0,0.00042428,2]
[408717236,1774167046808,-300.0,0.00042428,2]
[408717238,1774167046817,-300.0,0.00042428,2]
[408717240,1774167046827,-520.90741423,0.00042428,2]
[408717242,1774167046836,-235.22003134,0.00042454,2]
[408717244,1774167046845,-250.66,0.000425,30]
[408717246,1774167046855,-2148.64,0.000425,30]
[408717248,1774167046865,-524.37,0.00042546,120]
[408717250,1774167046875,-5533.0,0.000426,3]
[408717252,1774167046885,-5800.0,0.00042666,14]
[408717254,1774167046895,-5800.0,0.00042675,14]
[408717256,1774167046904,-5800.0,0.00042683,14]
[408717258,1774167046914,-271.47241316,0.00042754,2]
[408717260,1774167046923,-3514.0,0.00042762,2]
[408717262,1774167046933,-908.46,0.00042854,2]
[408717264,1774167046942,-177.54,0.00042947,90]
[408717266,1774167046951,-231.0,0.0004295,30]
[408717268,1774167046961,-2000.0,0.000432,2]
[408717271,1774167046971,-2148.64,0.000432,30]
[408717272,1774167046981,-5533.0,0.000433,5]
[408717274,1774167046990,-163.0,0.000434,120]
[408717277,1774167047000,-250.66,0.000435,30]
[408717279,1774167047009,-5113.74212955,0.0004363,9]
[408717281,1774167047023,-5000.0,0.0004363,14]
[408717282,1774167047032,-5000.0,0.0004363,9]
[408717284,1774167047042,-5000.0,0.0004363,10]
[408717287,1774167047054,-37118.03,0.000437,7]
[408717289,1774167047064,-479.84619912,0.00043736,2]
[408717291,1774167047073,-1000.0,0.00043836,18]
[408717293,1774167047083,-500.0,0.00043836,10]
[408717294,1774167047092,-298.0,0.00043836,30]
[408717296,1774167047102,-282.0,0.00043836,30]
[408717298,1774167047115,-500.0,0.000439,16]
[408717300,1774167047125,-2148.64,0.000439,30]
[408717303,1774167047134,-817.5,0.00043997,120]
[408717305,1774167047144,-372.50511899,0.00044,2]
[408717307,1774167047155,-494.50541069,0.00044492,2]
[408717309,1774167047165,-1515.31187087,0.00044492,2]
[408717311,1774167047175,-660.88,0.000445,30]
[408717313,1774167047185,-471.73,0.000445,30]
[408717314,1774167047195,-1093.0,0.0004484,120]
[408717316,1774167047204,-271.47241315,0.00044896,2]
[408717318,1774167047213,-231.0,0.0004496,30]
[408717320,1774167047223,-363.98,0.00045,30]
[408717322,1774167047232,-250.66,0.00045,30]
[408717324,1774167047242,-150.0,0.00045205,2]
[408717325,1774167047252,-247.0,0.00045205,2]
[408717326,1774167047396,-150.0,0.00045205,2]
[408717327,1774167047406,-226.0,0.00045205,2]
[408717328,1774167047415,-479.84619912,0.00045386,2]
[408717329,1774167047425,-2000.0,0.000455,2]
[408717330,1774167047435,-1619.18092592,0.0004559,2]
[408717331,1774167047444,-423.14,0.000456,30]
[408717332,1774167047453,-686.54,0.000456,30]
[408717333,1774167047463,-3514.0,0.00045762,2]
[408717334,1774167047472,-1400.0,0.000459,16]
[408717335,1774167047482,-10206.98861962,0.00045921,2]
[408717336,1774167047491,-164.12609114,0.00045921,9]
[408717337,1774167047502,-151.0,0.00045997,120]
[408717338,1774167047511,-787.10595,0.00046,20]
[408717339,1774167047521,-383853.20588319,0.00046,2]
[408717340,1774167047530,-151.0,0.00046021,120]
[408717341,1774167047539,-16692.7159903,0.00046024,2]
[408717342,1774167047549,-430651.7529801,0.00046024,2]
[408717343,1774167047558,-291.0,0.00046028,2]
[408717344,1774167047568,-250.66,0.000461,30]
[408717345,1774167047578,-967.19143236,0.00046136,18]
[408717346,1774167047587,-967.19143228,0.00046136,18]
[408717347,1774167047597,-967.19143228,0.00046136,18]
[408717348,1774167047607,-967.19143228,0.00046136,18]
[408717349,1774167047616,-967.19143228,0.00046136,18]
[408717350,1774167047626,-967.19143228,0.00046136,18]
[408717351,1774167047636,-967.19143228,0.00046136,18]
[408717352,1774167047645,-967.19143228,0.00046136,18]
[408717353,1774167047655,-967.19143228,0.00046136,18]
[408717354,1774167047665,-967.19143228,0.00046136,18]
[408717355,1774167047674,-967.19143228,0.00046136,18]
[408717356,1774167047683,-967.19143228,0.00046136,18]
[408717357,1774167047693,-967.19143228,0.00046136,18]
[408717358,1774167047703,-37118.03,0.000462,7]
[408717359,1774167047714,-500.0,0.00046356,120]
[408717360,1774167047723,-500.0,0.00046356,120]
[408717361,1774167047733,-500.0,0.00046356,120]
[408717362,1774167047743,-730.95432572,0.00046388,30]
[408717363,1774167047753,-186.33877404,0.0004639,7]
[408717364,1774167047762,-366.0,0.00046399,2]
[408717365,1774167047772,-1100.0,0.000464,16]
[408717366,1774167047781,-39769.87,0.00046431,6]
[408717367,1774167047791,-11434.39,0.00046431,6]
[408717368,1774167047801,-10206.98861962,0.00046479,2]
[408717369,1774167047811,-10530.06,0.000465,6]
[408717370,1774167047821,-27588.68,0.000465,6]
[408717371,1774167047831,-200.0,0.000465,16]
[408717372,1774167047840,-200.0,0.000465,16]
[408717373,1774167047850,-500.0,0.00046575,2]
[408717374,1774167047859,-500.0,0.00046575,2]
[408717375,1774167047870,-500.0,0.00046575,2]
[408717376,1774167047880,-500.0,0.00046575,2]
[408717377,1774167047890,-500.0,0.00046575,2]
[408717378,1774167047901,-500.0,0.00046575,2]
[408717379,1774167047911,-574.10096148,0.00046575,2]
[408717380,1774167047921,-908.46,0.00046575,2]
[408717381,1774167047930,-500.0,0.00046575,2]
[408717382,1774167047940,-500.91995074,0.00046575,2]
[408717383,1774167047951,-810.51,0.00046575,2]
[408717384,1774167047960,-810.51,0.00046575,2]
[408717385,1774167047970,-810.51,0.00046575,2]
[408717386,1774167047980,-810.51,0.00046575,2]
[408717387,1774167047989,-810.51,0.00046575,2]
[408717388,1774167047999,-810.51,0.00046575,2]
[408717389,1774167048009,-810.51,0.00046575,2]
[408717390,1774167048019,-810.51,0.00046575,2]
[408717391,1774167048029,-810.51,0.00046575,2]
[408717392,1774167048039,-810.51,0.00046575,2]
[408717393,1774167048049,-810.51,0.00046575,2]
[408717394,1774167048058,-810.51,0.00046575,2]
[408717395,1774167048068,-810.51,0.00046575,2]
[408717396,1774167048078,-810.51,0.00046575,2]
[408717397,1774167048088,-810.51,0.00046575,2]
[408717398,1774167048098,-810.51,0.00046575,2]
[408717399,1774167048108,-810.51,0.00046575,2]
[408717400,1774167048121,-810.51,0.00046575,2]
[408717401,1774167048131,-810.51,0.00046575,2]
[408717402,1774167048140,-810.51,0.00046575,2]
[408717403,1774167048154,-810.51,0.00046575,2]
[408717404,1774167048164,-810.51,0.00046575,2]
[408717405,1774167048173,-810.51,0.00046575,2]
[408717406,1774167048183,-810.51440959,0.00046575,2]
[408717407,1774167048193,-2585.93,0.00046575,2]
[408717408,1774167048203,-2585.93,0.00046575,2]
[408717409,1774167048212,-2585.93,0.00046575,2]
[408717410,1774167048221,-2585.93,0.00046575,2]
[408717411,1774167048230,-2585.93,0.00046575,2]
[408717412,1774167048239,-2585.93,0.00046575,2]
[408717413,1774167048249,-2585.93,0.00046575,2]
[408717414,1774167048258,-2585.93,0.00046575,2]
[408717415,1774167048268,-2585.93,0.00046575,2]
[408717416,1774167048277,-2585.93,0.00046575,2]
[408717417,1774167048286,-2585.93,0.00046575,2]
[408717418,1774167048295,-2585.93,0.00046575,2]
[408717419,1774167048305,-2585.93,0.00046575,2]
[408717420,1774167048314,-2585.93,0.00046575,2]
[408717421,1774167048323,-2585.93,0.00046575,2]
[408717422,1774167048336,-2585.93,0.00046575,2]
[408717423,1774167048345,-2585.93,0.00046575,2]
[408717424,1774167048355,-2585.93,0.00046575,2]
[408717425,1774167048364,-2585.93,0.00046575,2]
[408717426,1774167048374,-2585.93,0.00046575,2]
[408717427,1774167048383,-2585.93,0.00046575,2]
[408717428,1774167048393,-2585.93,0.00046575,2]
[408717429,1774167048402,-2585.93,0.00046575,2]
[408717430,1774167048412,-2585.96779834,0.00046575,2]
[408717431,1774167048422,-500.0,0.00046575,2]
[408717432,1774167048432,-500.0,0.00046575,2]
[408717433,1774167048442,-500.0,0.00046575,2]
[408717434,1774167048452,-500.0,0.00046575,2]